Cogmind - Beta 14 @@@ ROGUE MODE // 2024.10.09 @ 18:49:41 Player: Sandwich Result: Self-destructed Performance ------------- Evolutions (2) 1000 Regions Visited (4) 800 Robots Destroyed (54) 270 Value Destroyed (1433) 1433 Prototype IDs (4) 80 Alien Tech Used (0) 0 Bonus (-12) -12 TOTAL SCORE: 3571 Bonus ------- Friendly Fire -12 Cogmind --------- Core Integrity 309/550 Matter 300/300 Energy 240/240 System Corruption 0% Temperature Cool (0) Movement Walking (330) Ox3 Location -8/Materials Parts ------- > --- POWER (1) -------- Nuclear Core > --- PROPULSION (4) --- Aluminum Leg > --- UTILITY (3) ------ Heat Sink Cooling System Large Storage Unit > --- WEAPON (3) ------- Advanced Beam Rifle Advanced Beam Rifle Advanced Beam Rifle > --- INVENTORY (15) --- Improved Ion Engine Nuclear Core Nuclear Core Nuclear Core Nuclear Core Heat Sink Improved Heat Sink Particle Charger Particle Gun Particle Gun Datajack Peak State ------------ > --- POWER ------------ Nuclear Core > --- PROPULSION ------- Aluminum Leg Aluminum Leg Aluminum Leg Improved Aluminum Leg > --- UTILITY ---------- Improved Heat Sink Large Storage Unit Particle Charger > --- WEAPON ----------- Medium Laser Advanced Beam Rifle Advanced Beam Rifle > --- INVENTORY -------- Improved Ion Engine Nuclear Core Nuclear Core Nuclear Core Nuclear Core Heat Sink Heat Sink Improved Heat Sink Cooling System Particle Gun Particle Gun Advanced Beam Rifle Datajack [Rating: 27] Favorites ----------- Power Ion Engine Engine Ion Engine Power Core Nuclear Core Propulsion Aluminum Leg Leg Aluminum Leg Utility Heat Sink Device Heat Sink Storage Large Storage Unit Protection Weapon Shielding Weapon Medium Laser Energy Gun Medium Laser Build | -11 -10 -9 -9 -8 ------- Run | Yrd Mat Mat Min Mat Slots Evolved 4 | . . 2 . 2 Power . | . . . . . Propulsion 2 | . . 1 . 1 Utility 1 | . . . . 1 Weapon 1 | . . 1 . . Parts Attached 43 | 6 9 10 2 16 Power 5 | 1 1 2 . 1 Engine 3 | 1 1 1 . . Core 2 | . . 1 . 1 Reactor . | . . . . . Propulsion 14 | 2 4 4 2 2 Treads . | . . . . . Leg 14 | 2 4 4 2 2 Wheel . | . . . . . Hover . | . . . . . Flight . | . . . . . Utility 10 | 1 2 1 . 6 Device 7 | . 1 1 . 5 Storage 2 | 1 1 . . . Processor . | . . . . . Hackware . | . . . . . Protection 1 | . . . . 1 Artifact . | . . . . . Weapon 14 | 2 2 3 . 7 Energy Gun 14 | 2 2 3 . 7 Energy Cannon . | . . . . . Ballistic Gun . | . . . . . Ballistic Cannon . | . . . . . Launcher . | . . . . . Special Weapon . | . . . . . Impact Weapon . | . . . . . Slashing Weapon . | . . . . . Piercing Weapon . | . . . . . Special Melee Weapon . | . . . . . Unidentified Prototypes 2 | . . . . 2 Parts Lost 15 | . . 4 . 11 Power 1 | . . 1 . . Propulsion 5 | . . 1 . 4 Utility 4 | . . . . 4 Weapon 5 | . . 2 . 3 Highest Loss Streak 9 | . . 3 . 9 To Critical Strikes 1 | . . 1 . . Average Slot Usage (%) 95 | . 98 92 100 90 Engine 7 | . 14 4 . . Core 4 | . . 6 11 9 Leg 28 | . 28 26 33 29 Device 11 | . 12 11 11 10 Storage 11 | . 14 11 11 9 Protection 1 | . . . . 6 Energy Gun 29 | . 28 32 33 26 Peak Build Rating 27 | 6 9 14 14 27 Average Rating 11 | 4 7 11 13 18 On Entrance 8 | . 6 9 13 14 Naked Turns . | . . . . . Heaviest Build 37 | 13 31 34 32 37 Greatest Support 43 | 20 20 30 33 43 Greatest Overweight (x) 11 | . 1 1 1 11 Average Overweight (x) . | . . 1 . . Largest Inventory Capacity 15 | 8 15 15 15 15 Average Capacity 12 | 7 9 15 15 15 Most Carried 15 | 3 11 15 15 15 Average Carried 10 | 1 7 13 15 14 Final Capacity 15 | 8 15 15 15 15 Final Carried 15 | 3 11 15 15 11 Class Distribution -------------------- 38% | Scavenger-Gunner 28% | Scavenger-Mutant 16% | Mutant 12% | Scavenger-Tank 4% | Gunner Dominant Class ---------------- Scavenger-Mutant | -10/Materials Scavenger-Gunner | -9/Materials Scavenger-Gunner | -9/Mines Scavenger-Tank | -8/Materials Resources | -11 -10 -9 -9 -8 ----------- Run | Yrd Mat Mat Min Mat Matter Collected 580 | 232 128 85 20 115 Remotely . | . . . . . Salvage Created 1961 | . 497 507 43 914 Parts 108 | . 34 35 1 38 Haulers Intercepted 1 | . . . . 1 Recyclers Shooed 2 | . . . . 2 Parts Field Recycled . | . . . . . Retrieved Matter . | . . . . . Parts Self-Destructed . | . . . . . Prevented . | . . . . . Kills | -11 -10 -9 -9 -8 ------- Run | Yrd Mat Mat Min Mat Combat Hostiles Destroyed 46 | . 14 15 1 16 Guns 44 | . 14 15 . 15 Classes Destroyed 10 | . 3 2 . 5 Worker 2 | . . . . 2 Hauler 1 | . . . . 1 Recycler 3 | . 1 1 . 1 Watcher 2 | . . 2 . . Swarmer 18 | . 6 9 . 3 Grunt 21 | . 8 2 1 10 Brawler 1 | . . . . 1 Sentry 4 | . . 4 . . Hunter 1 | . . . . 1 Heavy 1 | . . . . 1 Best Kill Streak 7 | . 7 5 1 6 Combat Bots Only 6 | . 6 5 1 4 Max Kills in Single Turn 2 | . 1 2 1 2 Gunslinging 1 | . . 1 . 1 Exploded . | . . . . . Melee . | . . . . . Uniques/NPCs Destroyed . | . . . . . Combat | -11 -10 -9 -9 -8 -------- Run | Yrd Mat Mat Min Mat Hostile Shots Fired 243 | . 55 80 5 103 Missed 62 | . 19 20 . 23 Damage Taken 2260 | . 350 606 56 1248 Core 375 | . 42 92 . 241 Absorbed by Shields . | . . . . . Redirected to Shielding 64 | . . . . 64 Core Remaining (%) 86 | 100 83 . 77 . Volleys Fired 111 | . 31 37 4 39 Largest 3 | . 2 3 3 3 Hottest 183 | . 115 155 130 183 Shots Fired 297 | . 62 109 12 114 Gun 297 | . 62 109 12 114 Cannon . | . . . . . Launcher . | . . . . . Special . | . . . . . Kinetic . | . . . . . Thermal 289 | . 62 109 12 106 Explosive . | . . . . . Electromagnetic 8 | . . . . 8 Robot Hit Streak 16 | . 7 9 3 16 Robot Miss Streak 3 | . 3 3 1 3 Penetration Max . | . . . . . Secondary Targets 7 | . . 1 . 6 Max Gunslinging Chain 1 | . . 1 . 1 Shots Hit Robots 189 | . 38 58 8 85 Core Hits 93 | . 24 27 1 41 Critical Kills . | . . . . . Critical Parts Destroyed . | . . . . . Critical Strikes 12 | . 3 3 1 5 Burn 12 | . 3 3 1 5 Melee Attacks . | . . . . . Impact . | . . . . . Slashing . | . . . . . Piercing . | . . . . . Sneak Attacks . | . . . . . Combat Hostiles . | . . . . . Follow-up Attacks . | . . . . . Damage Inflicted 2791 | . 503 720 92 1476 Guns 2791 | . 503 720 92 1476 Cannons . | . . . . . Explosions . | . . . . . Melee . | . . . . . Ramming . | . . . . . Kinetic . | . . . . . Thermal 2602 | . 503 720 92 1287 Explosive . | . . . . . Electromagnetic 189 | . . . . 189 Impact . | . . . . . Slashing . | . . . . . Piercing . | . . . . . Highest Corruption 1 | . 1 . . . Average Corruption 1 | . 1 . . . Corruption Purged . | . . . . . Corruption Blocked . | . . . . . Effects 4 | . 4 . . . Message Errors 1 | . 1 . . . Matter Fused 1 | . 1 . . . Energy Discharges 1 | . 1 . . . Alerts 1 | . 1 . . . Overload Shots . | . . . . . Overflow Damage . | . . . . . Projectiles . | . . . . . Explosions . | . . . . . Melee . | . . . . . Knockbacks . | . . . . . Impact . | . . . . . Kinetic . | . . . . . Secondary . | . . . . . Self-Inflicted Damage . | . . . . . Shots . | . . . . . Rammed . | . . . . . Targets Rammed . | . . . . . Kicked . | . . . . . Crushed . | . . . . . Highest Temperature 518 | . 192 320 143 518 Average Temperature 106 | . 57 85 76 159 Received Heat Transfer 879 | . 120 135 30 594 Effects 5 | . . 1 . 4 Shutdowns 1 | . . . . 1 Energy Bleed 3 | . . 1 . 2 Damage (minor) 1 | . . . . 1 Siege Activations . | . . . . . Robots Corrupted . | . . . . . Combat Hostiles . | . . . . . Parts Fried . | . . . . . Impact Corruptions . | . . . . . Robots Melted 2 | . . . 1 1 Combat Hostiles 2 | . . . 1 1 Parts Melted 16 | . 4 5 2 5 Heat Transferred 7174 | . 1532 2047 322 3273 Parts Sabotaged . | . . . . . Parts Stolen . | . . . . . Parts Stripped . | . . . . . Power Chain Reactions . | . . . . . Alert | -11 -10 -9 -9 -8 ------- Run | Yrd Mat Mat Min Mat Peak Influence 295 | . 295 215 77 271 Initial 42 | . . 37 42 29 Average 103 | . 144 66 46 114 Maximum Alert Level 1 | . 1 1 . 1 Low Security (%) 84 | 100 71 98 100 78 Level 1 15 | . 28 1 . 21 Level 2 . | . . . . . Level 3 . | . . . . . Level 4 . | . . . . . Level 5 . | . . . . . High Security . | . . . . . Max Security . | . . . . . Squads Dispatched 5 | . 3 . . 2 Investigation 2 | . 2 . . . Extermination . | . . . . . Reinforcement 3 | . 1 . . 2 Assault . | . . . . . Garrison . | . . . . . Intercept . | . . . . . Searches Triggered . | . . . . . Construction Impeded . | . . . . . Haulers Reinforced . | . . . . . Active Scanning Responses . | . . . . . Cargo Convoy Interrupts . | . . . . . Stealth | -11 -10 -9 -9 -8 --------- Run | Yrd Mat Mat Min Mat Distress Signals 13 | . 4 3 . 6 Communications Jammed . | . . . . . Distress Signals . | . . . . . Times Spotted 80 | . 29 23 3 25 Peak Tracking Total 9 | . 5 6 3 9 Tactical Retreats 11 | . 1 6 1 3 Traps | -11 -10 -9 -9 -8 ------- Run | Yrd Mat Mat Min Mat Traps Triggered 3 | . 3 . . . Indirectly . | . . . . . Trap Hack Attempts . | . . . . . Triggered . | . . . . . Disarmed . | . . . . . Reprogrammed . | . . . . . Reused . | . . . . . Traps Extracted . | . . . . . Installed . | . . . . . Triggered . | . . . . . Machines | -11 -10 -9 -9 -8 ---------- Run | Yrd Mat Mat Min Mat Machines Disabled 1 | . . . . 1 Max in Single Turn 1 | . . . . 1 Machines Repaired . | . . . . . Machines Dismantled . | . . . . . Machines Sabotaged . | . . . . . Overloaded Fab Kills . | . . . . . Hacking | -11 -10 -9 -9 -8 --------- Run | Yrd Mat Mat Min Mat Machines Accessed 8 | . 4 2 . 2 Terminals 8 | . 4 2 . 2 Fabricators . | . . . . . Repair Stations . | . . . . . Recycling Units . | . . . . . Scanalyzers . | . . . . . Garrison Access . | . . . . . Total Hacks 33 | . 14 8 . 11 Successful 18 | . 7 5 . 6 Failed 15 | . 7 3 . 5 Catastrophic 4 | . 3 1 . . Database Lockouts . | . . . . . Manual 24 | . 14 3 . 7 Terminals 33 | . 14 8 . 11 Fabricators . | . . . . . Repair Stations . | . . . . . Recycling Units . | . . . . . Scanalyzers . | . . . . . Garrison Access . | . . . . . Terminal Hacks 9 | . 2 3 . 4 Prototype ID Bank 1 | . . . . 1 Branch Access Points 1 | . 1 . . . Terminal Index 2 | . 1 . . 1 Unreport Threat 5 | . . 3 . 2 Fabricator Hacks . | . . . . . Repair Station Hacks . | . . . . . Recycling Unit Hacks . | . . . . . Scanalyzer . | . . . . . Garrison Access Hacks . | . . . . . Unauthorized Hacks 9 | . 5 2 . 2 Terminals 9 | . 5 2 . 2 Assimilate 1 | . 1 . . . Botnet 7 | . 3 2 . 2 Operators 1 | . 1 . . . Fabricators . | . . . . . Repair Stations . | . . . . . Recycling Units . | . . . . . Scanalyzers . | . . . . . Garrison Access . | . . . . . Data Cores Recovered . | . . . . . Used . | . . . . . Hacking Detections 8 | . 4 2 . 2 Full Trace Events . | . . . . . Feedback Events . | . . . . . Feedback Blocked . | . . . . . Robot Schematics Acquired . | . . . . . Robots Built . | . . . . . Authchips . | . . . . . Time . | . . . . . Total Robot Build Rating . | . . . . . Part Schematics Acquired . | . . . . . Parts Built . | . . . . . Authchips . | . . . . . Time . | . . . . . Total Part Build Rating . | . . . . . Parts Repaired . | . . . . . Time . | . . . . . Parts Recycled . | . . . . . Recycled Matter . | . . . . . Retrieved Matter . | . . . . . Retrieved Components . | . . . . . Parts Scanalyzed . | . . . . . Part Schematics Acquired . | . . . . . Parts Damaged . | . . . . . Bothacking | -11 -10 -9 -9 -8 ------------ Run | Yrd Mat Mat Min Mat Used RIF Installer . | . . . . . Robots Hacked . | . . . . . Non-combat . | . . . . . Combat . | . . . . . Robot Hacks Applied . | . . . . . Relay Couplers Released . | . . . . . Fabnet Peak Effective % . | . . . . . Robots Rewired . | . . . . . Allies Hacked . | . . . . . Hacks Repelled . | . . . . . Allies | -11 -10 -9 -9 -8 -------- Run | Yrd Mat Mat Min Mat Total Allies 1 | . 1 . . . Largest Group 1 | . 1 1 . . Highest-Rated Group 10 | . 10 10 . . Highest-Rated Ally 10 | . 10 10 . . Total Orders . | . . . . . Ally Attacks . | . . . . . Total Damage . | . . . . . Kills . | . . . . . Allies Corrupted . | . . . . . Allies Melted . | . . . . . Intel | -11 -10 -9 -9 -8 ------- Run | Yrd Mat Mat Min Mat Robot Analysis Total . | . . . . . Derelict Logs Recovered . | . . . . . Drone Launches . | . . . . . Drone Recoveries . | . . . . . Exploration | -11 -10 -9 -9 -8 ------------- Run | Yrd Mat Mat Min Mat Turns Passed 2559 | 57 1050 867 139 446 Spaces Moved 1267 | 40 654 335 73 165 Core 4 | 3 . . . 1 Treads . | . . . . . Legs 1263 | 37 654 335 73 164 Wheels . | . . . . . Hover . | . . . . . Flight . | . . . . . Fastest Speed 50 | 50 120 190 120 120 Average Speed 149 | 114 131 190 149 142 Slowest Speed 600 | 120 190 190 190 600 Overloaded Moves . | . . . . . Propulsion Burnouts . | . . . . . Robots Hopped . | . . . . . Cave-ins Triggered . | . . . . . Exploration Rate (%) 32 | 3 95 28 21 17 Regions Visited 4 Branch Regions 1 Pre-discovered Areas . | . . . . . Known Exits Taken . | . . . . . Unknown Exits Taken 4 | 1 1 1 1 . Scrap Searched 1 | . . . 1 . Spaces Dug . | . . . . . Terrain Destroyed . | . . . . . Melee . | . . . . . Projectile . | . . . . . AOE . | . . . . . Terrain Rammed . | . . . . . Walls Destroyed . | . . . . . Machines Disabled . | . . . . . Actions | -11 -10 -9 -9 -8 --------- Run | Yrd Mat Mat Min Mat Total 1707 | 48 785 487 94 293 Wait 229 | . 74 88 14 53 Move 1263 | 39 653 334 72 165 Hop . | . . . . . Pick Up 33 | 3 9 11 . 10 Fast Attach 15 | 6 2 2 . 5 Attach 13 | . . 4 . 9 Detach 1 | . . . . 1 Swap 15 | . 7 4 2 2 Drop 27 | . 9 7 2 9 Fire 111 | . 31 37 4 39 Melee . | . . . . . Ram . | . . . . . Kick . | . . . . . Crush . | . . . . . Escape Stasis . | . . . . . Rewire . | . . . . . Trap . | . . . . . Miscellaneous . | . . . . . Route ------- -11/Scrapyard -10/Materials (discovered 3 exits: *Mat x2 / *Min) -9/Materials -9/Mines -8/Materials History --------- Turn | Location | Event 4 | -11/Scrapyard | Discovered new exit (range 15) 58 | -11/Scrapyard | Entered Materials 125 | -10/Materials | Identified exit to Mines 300 | -10/Materials | Build established: Mutant 343 | -10/Materials | Discovered new exit (range 3) 706 | -10/Materials | Build established: Scavenger-Mutant 708 | -10/Materials | Discovered new exit (range 5) 1108 | -10/Materials | Entered another Materials area 1108 | -9/Materials | Accompanied by 1 ally 1108 | -9/Materials | Evolved 2 slots: Propulsion x1, Weapon x1 1414 | -9/Materials | Build established: Scavenger-Gunner 1710 | -9/Materials | Lost 3 parts (1n2w) 1924 | -9/Materials | Discovered new exit (range 7) 1975 | -9/Materials | Entered Mines 2012 | -9/Mines | Met a Derelict bent on vengeance 2079 | -9/Mines | Discovered new exit (range 7) 2114 | -9/Mines | Entered Materials 2114 | -8/Materials | Evolved 2 slots: Propulsion x1, Utility x1 2533 | -8/Materials | Lost 9 parts (4n3u2w) 2560 | -8/Materials | Self-destructed Last Messages --------------- 02500_ Critical hit (Burn: +37). 02502_ Imp. Aluminum Leg destroyed. 02506_ G-47 Trooper overheating. 02509_ G-47 Trooper destroyed. 02509_ Switching to secondary target: G-47 Trooper. 02516_ G-47 Trooper suffers critical hit (Burn). 02516_ G-47 Trooper destroyed. 02516_ Atomic Centrifuge disabled. 02521_ K-01 Serf collects debris. 02525_ Acquired Aluminum Leg. 02526_ R-06 Scavenger collects Sml. Laser. 02527_ Acquired 42 matter. 02527_ K-01 Serf collects debris. 02530_ Acquired 9 matter. 02538_ W-25 Informer sends out distress signal. 02542_ K-01 Serf collects debris. 02552_ Critical hit (Burn: +37). 02555_ K-01 Serf collects debris. 02555_ Critical hit (Burn: +37). 02559_ K-01 Serf collects debris. Map ----- +----------------------------------------------------+ | ?????????????????????????????????????????????????? | | ?????????????????????????????????????????????????? | | ?????????????????????????????????????????????????? | | ?????????????????????????????????????????????????? | | ?????????????????????????????????????????????????? | | ?????????????????????????????????????????????????? | | ?????????????????????????????????????????????????? | | ?????????????????????????????????????????????????? | | ?????????????????????????????????????????????????? | | ?????????????????????????????????????????????????? | | ???????????????????##+##?????????????????????????? | | ??????????????????# +????????????????????????? | | ??????????????????# #????????????????????????? | | ??????????????????# #????????????????????????? | | ??????????????????# #??????????????########### | | ??????????????????+ +??????????????# # | | ??????????????????# #??????????????# # """ | | ??????????????????# #??????????????# # "R" | | ???????#####??????# #??????????????# + " " | | ???????# ?????# #??????????????# # | | ???????# ????# ###########????# # ! | | ???????# =#???# # ! #????# ####### | | ???????# % %##### # #????# ####### | | ???????# ^ !=! # % o #????# # T | | ???????# ^ k "" """ #????# # | | ?????????? """ ^ #@""" """ #????# / | | ????????!? """ ^ [ = # """ """ #????# ####### | | ???????# """ [ !!# #????# ## | | ???????# ^ % !# / #???## ## """ | | ???????# % ^ % % ###########???# # """ | | ???? ^ """ ##????????????# #%""" | | ????? """ ! ############### T %/% | | ?????? """ % %[%[=* % %% # ! | | ?????? =######% = ##### # | | ?????? [ #????#% #???####### | | ???????# ########T###????# ! #?????????###### | | ???????? ???????###??????# ##+#??????????????? | | ???????# ?????????????????# # ?????????????? | | ???????? ?????????????????? # ???????????? | | ???????? ??????????????????## # #??????????? | | ?????????????????????????????# #[[ #??????????? | | ?????????????????????????????# #[[ #??????????? | | ?????????????????????????????# # #??????????? | | ?????????????????????????????# ########??????????? | | ?????????????????????????????? ??????????????????? | | ?????????????????????????????? ??????????????????? | | ?????????????????????????????? ??????????????????? | | ?????????????????????????????? ??????????????????? | | ?????????????????????????????? ??????????????????? | | ?????????????????????????????? ??????????????????? | +----------------------------------------------------+ Best States ------------- Heat Dissipation 67 Energy Generation 14 Energy Capacity 265 Matter Stores 300 Matter Capacity 300 Sight Range 16 Terrain Scan Density 10 Weapon Shielding 33 Evasion (%) 55 Particle Charging 15 Item Schematics ----------------- None Robot Schematics ------------------ None Fabricated ------------ Nothing Alien Tech Used ----------------- None Achievements -------------- None Challenges ------------ None Game ------ Seed FortressBackupDetector Manual? 0 Play Time 00:17:59 Cumulative 224.7 hours Start 2024.10.07 @ 17:49:09 End 2024.10.09 @ 18:49:41 Sessions 3 Manual Loads 0 Difficulty Rogue Special Mode None Game No. 289 Rogue 245 Adventurer 4 Explorer 40 Win Type - Total 10 Types 8/1/0/1/0/0/0/0/0 Lore% 33 Gallery% 70 Achievement% 62 Wizard Run 0 Options --------- Layout 0 ASCII 0 Keyboard 0 Movement Numpad Keybinds 0 Fullscreen 2 Font 24/Smallcaps Map View 76x50 Zoom Use 0% Tactical HUD 1 Map Filters NONE Filters NONE Steam 1 RUN: 6763d344-b9bb-41e7-82f9-150e388914b7